fUST/lending_fUST_20260630
["ID","MTS","AMOUNT","RATE_DAILY","PERIOD"]
[426760183,1782784248000,-500.0,0.00029863,7]
[426760191,1782784248000,-500.0,0.00029863,7]
[426760192,1782784248000,-500.0,0.00029863,7]
[426760205,1782784248000,-500.0,0.00029863,7]
[426760195,1782784248000,-500.0,0.00029863,7]
[426760198,1782784248000,-500.0,0.00029863,7]
[426760201,1782784248000,-500.0,0.00029863,7]
[426760202,1782784248000,-500.0,0.00029863,7]
[426760208,1782784248000,-500.0,0.00029863,7]
[426760210,1782784248000,-500.0,0.00029863,7]
[426760206,1782784248000,-500.0,0.00029863,7]
[426760211,1782784248000,-500.0,0.00029863,7]
[426760207,1782784248000,-500.0,0.00029863,7]
[426760200,1782784248000,-500.0,0.00029863,7]
[426760209,1782784248000,-500.0,0.00029863,7]
[426760187,1782784248000,-500.0,0.00029863,7]
[426760204,1782784248000,-502.49887057,0.00029863,7]
[426760197,1782784248000,-508.76873239,0.00029863,7]
[426760184,1782784248000,-171.39091451,0.00029863,7]
[426760167,1782784248000,-500.0,0.00029863,7]
[426760180,1782784248000,-500.0,0.00029863,7]
[426760203,1782784248000,-500.0,0.00029863,7]
[426760152,1782784248000,-500.0,0.00029863,7]
[426760154,1782784248000,-500.0,0.00029863,7]
[426760157,1782784248000,-500.0,0.00029863,7]
[426760153,1782784248000,-500.0,0.00029863,7]
[426760155,1782784248000,-500.0,0.00029863,7]
[426760156,1782784248000,-500.0,0.00029863,7]
[426760159,1782784248000,-503.16607076,0.00029863,7]
[426760165,1782784248000,-500.0,0.00029863,7]
[426760161,1782784248000,-500.0,0.00029863,7]
[426760164,1782784248000,-500.0,0.00029863,7]
[426760160,1782784248000,-509.85122387,0.00029863,7]
[426760163,1782784248000,-500.0,0.00029863,7]
[426760182,1782784248000,-500.0,0.00029863,7]
[426760158,1782784248000,-500.0,0.00029863,7]
[426760177,1782784248000,-500.0,0.00029863,7]
[426760178,1782784248000,-500.0,0.00029863,7]
[426760168,1782784248000,-500.0,0.00029863,7]
[426760166,1782784248000,-500.0,0.00029863,7]
[426760170,1782784248000,-500.0,0.00029863,7]
[426760172,1782784248000,-500.0,0.00029863,7]
[426760169,1782784248000,-500.0,0.00029863,7]
[426760173,1782784248000,-500.0,0.00029863,7]
[426760171,1782784248000,-500.0,0.00029863,7]
[426760174,1782784248000,-500.0,0.00029863,7]
[426760176,1782784248000,-601.37229265,0.00029863,7]
[426760175,1782784248000,-500.0,0.00029863,7]
[426760179,1782784248000,-504.57068036,0.00029863,7]
[426760162,1782784248000,-500.0,0.00029863,7]
[426760212,1782784248000,-584.95157323,0.00029863,7]
[426760232,1782784248000,-506.07072779,0.00029863,7]
[426760221,1782784248000,-500.0,0.00029863,7]
[426760250,1782784248000,-500.0,0.00029863,7]
[426760246,1782784248000,-500.0,0.00029863,7]
[426760243,1782784248000,-500.0,0.00029863,7]
[426760244,1782784248000,-520.45229231,0.00029863,7]
[426760262,1782784248000,-500.0,0.00029863,7]
[426760251,1782784248000,-475.77726399,0.00029863,7]
[426760252,1782784248000,-609.45110438,0.00029863,7]
[426760255,1782784248000,-233.15889651,0.00029863,7]
[426760256,1782784248000,-500.0,0.00029863,7]
[426760253,1782784248000,-503.0550051,0.00029863,7]
[426760258,1782784248000,-500.0,0.00029863,7]
[426760259,1782784248000,-501.99231241,0.00029863,7]
[426760257,1782784248000,-500.0,0.00029863,7]
[426760254,1782784248000,-500.0,0.00029863,7]
[426760260,1782784248000,-500.0,0.00029863,7]
[426760263,1782784248000,-500.0,0.00029863,7]
[426760265,1782784248000,-500.0,0.00029863,7]
[426760266,1782784248000,-500.0,0.00029863,7]
[426760264,1782784248000,-500.0,0.00029863,7]
[426760270,1782784248000,-500.0,0.00029863,7]
[426760272,1782784248000,-509.67681562,0.00029863,7]
[426760268,1782784248000,-500.0,0.00029863,7]
[426760267,1782784248000,-500.0,0.00029863,7]
[426760274,1782784248000,-500.0,0.00029863,7]
[426760269,1782784248000,-500.0,0.00029863,7]
[426760271,1782784248000,-249.77257931,0.00029863,7]
[426760214,1782784248000,-500.0,0.00029863,7]
[426760247,1782784248000,-500.0,0.00029863,7]
[426760238,1782784248000,-513.42809224,0.00029863,7]
[426760261,1782784248000,-500.0,0.00029863,7]
[426760242,1782784248000,-500.0,0.00029863,7]
[426760215,1782784248000,-505.46560868,0.00029863,7]
[426760241,1782784248000,-500.0,0.00029863,7]
[426760217,1782784248000,-500.0,0.00029863,7]
[426760224,1782784248000,-500.0,0.00029863,7]
[426760218,1782784248000,-500.0,0.00029863,7]
[426760213,1782784248000,-500.0,0.00029863,7]
[426760216,1782784248000,-434.22650925,0.00029863,7]
[426760219,1782784248000,-500.0,0.00029863,7]
[426760225,1782784248000,-500.0,0.00029863,7]
[426760222,1782784248000,-502.03755894,0.00029863,7]
[426760223,1782784248000,-514.50510329,0.00029863,7]
[426760231,1782784248000,-500.0,0.00029863,7]
[426760237,1782784248000,-500.0,0.00029863,7]
[426760273,1782784248000,-500.0,0.00029863,7]
[426760220,1782784248000,-500.0,0.00029863,7]
[426760248,1782784248000,-500.0,0.00029863,7]
[426760229,1782784248000,-500.0,0.00029863,7]
[426760249,1782784248000,-500.0,0.00029863,7]
[426760240,1782784248000,-500.0,0.00029863,7]
[426760239,1782784248000,-500.0,0.00029863,7]
[426760245,1782784248000,-500.0,0.00029863,7]
[426760235,1782784248000,-500.0,0.00029863,7]
[426760228,1782784248000,-433.62280433,0.00029863,7]
[426760233,1782784248000,-500.0,0.00029863,7]
[426760226,1782784248000,-500.0,0.00029863,7]
[426760230,1782784248000,-511.27497596,0.00029863,7]
[426760234,1782784248000,-500.0,0.00029863,7]
[426760227,1782784248000,-500.0,0.00029863,7]
[426760236,1782784248000,-500.0,0.00029863,7]
[426760315,1782784249000,-500.0,0.00029863,7]
[426760324,1782784249000,-500.0,0.00029863,7]
[426760322,1782784249000,-500.0,0.00029863,7]
[426760323,1782784249000,-500.0,0.00029863,7]
[426760317,1782784249000,-509.24631079,0.00029863,7]
[426760306,1782784249000,-156.26088189,0.00029863,7]
[426760311,1782784249000,-500.0,0.00029863,7]
[426760307,1782784249000,-500.0,0.00029863,7]
[426760309,1782784249000,-500.0,0.00029863,7]
[426760312,1782784249000,-500.0,0.00029863,7]
[426760325,1782784249000,-500.0,0.00029863,7]
[426760320,1782784249000,-500.0,0.00029863,7]
[426760318,1782784249000,-161.2752091,0.00029863,7]
[426760334,1782784249000,-500.0,0.00029863,7]
[426760316,1782784249000,-500.0,0.00029863,7]
[426760319,1782784249000,-500.0,0.00029863,7]
[426760314,1782784249000,-500.0,0.00029863,7]
[426760321,1782784249000,-500.0,0.00029863,7]
[426760328,1782784249000,-500.0,0.00029863,7]
[426760327,1782784249000,-500.0,0.00029863,7]
[426760338,1782784249000,-500.0,0.00029863,7]
[426760339,1782784249000,-500.0,0.00029863,7]
[426760329,1782784249000,-500.0,0.00029863,7]
[426760330,1782784249000,-500.0,0.00029863,7]
[426760331,1782784249000,-500.0,0.00029863,7]
[426760332,1782784249000,-500.0,0.00029863,7]
[426760337,1782784249000,-500.0,0.00029863,7]
[426760310,1782784249000,-500.0,0.00029863,7]
[426760326,1782784249000,-500.0,0.00029863,7]
[426760305,1782784249000,-638.45094342,0.00029863,7]
[426760287,1782784249000,-514.44120225,0.00029863,7]
[426760302,1782784249000,-624.37398654,0.00029863,7]
[426760275,1782784249000,-500.0,0.00029863,7]
[426760335,1782784249000,-500.0,0.00029863,7]
[426760277,1782784249000,-500.0,0.00029863,7]
[426760288,1782784249000,-494.19821231,0.00029863,7]
[426760279,1782784249000,-510.073022,0.00029863,7]
[426760276,1782784249000,-500.0,0.00029863,7]
[426760280,1782784249000,-500.0,0.00029863,7]
[426760278,1782784249000,-500.0,0.00029863,7]
[426760281,1782784249000,-500.0,0.00029863,7]
[426760285,1782784249000,-500.0,0.00029863,7]
[426760283,1782784249000,-500.0,0.00029863,7]
[426760282,1782784249000,-500.0,0.00029863,7]
[426760284,1782784249000,-500.0,0.00029863,7]
[426760286,1782784249000,-500.0,0.00029863,7]
[426760289,1782784249000,-550.48227466,0.00029863,7]
[426760290,1782784249000,-500.0,0.00029863,7]
[426760292,1782784249000,-500.0,0.00029863,7]
[426760291,1782784249000,-501.88788306,0.00029863,7]
[426760294,1782784249000,-500.0,0.00029863,7]
[426760295,1782784249000,-500.0,0.00029863,7]
[426760300,1782784249000,-500.0,0.00029863,7]
[426760296,1782784249000,-500.0,0.00029863,7]
[426760299,1782784249000,-500.0,0.00029863,7]
[426760293,1782784249000,-500.0,0.00029863,7]
[426760297,1782784249000,-211.51536462,0.00029863,7]
[426760298,1782784249000,-500.0,0.00029863,7]
[426760301,1782784249000,-500.0,0.00029863,7]
[426760303,1782784249000,-500.0,0.00029863,7]
[426760313,1782784249000,-500.0,0.00029863,7]
[426760304,1782784249000,-204.26189956,0.00029863,7]
[426760333,1782784249000,-500.0,0.00029863,7]
[426760308,1782784249000,-334.78512004,0.00029863,7]
[426760342,1782784249000,-500.0,0.00029863,7]
[426760375,1782784249000,-304.37575508,0.00029863,7]
[426760370,1782784249000,-1072.45190786,0.00029863,2]
[426760368,1782784249000,-500.0,0.00029863,7]
[426760374,1782784249000,-500.0,0.00029863,7]
[426760381,1782784249000,-500.0,0.00029863,7]
[426760380,1782784249000,-500.0,0.00029863,7]
[426760387,1782784249000,-156.58925186,0.00029863,7]
[426760384,1782784249000,-500.0,0.00029863,7]
[426760388,1782784249000,-152.96,0.00029893,15]
[426760390,1782784249000,-431.57,0.00029898,6]
[426760382,1782784249000,-500.0,0.00029863,7]
[426760383,1782784249000,-500.0,0.00029863,7]
[426760385,1782784249000,-506.02177023,0.00029863,7]
[426760389,1782784249000,-431.575,0.00029897,7]
[426760391,1782784249000,-401.97,0.00029899,2]
[426760379,1782784249000,-500.0,0.00029863,7]
[426760386,1782784249000,-422.6418687,0.00029863,7]
[426760392,1782784249000,-151.0,0.000299,2]
[426760395,1782784249000,-1421.0,0.00029907,2]
[426760396,1782784249000,-377.459,0.00029907,2]
[426760398,1782784249000,-151.69932357,0.0002994,2]
[426760393,1782784249000,-151.0,0.000299,2]
[426760400,1782784249000,-520.85304907,0.00029983,2]
[426760394,1782784249000,-520.85304907,0.00029905,2]
[426760401,1782784249000,-152.96,0.00029993,15]
[426760399,1782784249000,-152.96,0.00029943,15]
[426760397,1782784249000,-186.0,0.00029907,2]
[426760402,1782784249000,-2000.0,0.00029994,2]
[426760336,1782784249000,-500.0,0.00029863,7]
[426760372,1782784249000,-500.0,0.00029863,7]
[426760373,1782784249000,-500.0,0.00029863,7]
[426760371,1782784249000,-500.0,0.00029863,7]
[426760376,1782784249000,-500.0,0.00029863,7]
[426760341,1782784249000,-500.0,0.00029863,7]
[426760345,1782784249000,-521.30160415,0.00029863,7]
[426760344,1782784249000,-500.0,0.00029863,7]
[426760348,1782784249000,-500.0,0.00029863,2]
[426760343,1782784249000,-500.0,0.00029863,7]
[426760346,1782784249000,-183.90518053,0.00029863,7]
[426760340,1782784249000,-500.0,0.00029863,7]
[426760347,1782784249000,-503.08597159,0.00029863,7]
[426760350,1782784249000,-500.0,0.00029863,2]
[426760369,1782784249000,-500.0,0.00029863,7]
[426760355,1782784249000,-504.74450429,0.00029863,7]
[426760358,1782784249000,-505.85269768,0.00029863,7]
[426760363,1782784249000,-500.0,0.00029863,7]
[426760362,1782784249000,-501.86034497,0.00029863,7]
[426760353,1782784249000,-420.72627696,0.00029863,2]
[426760349,1782784249000,-500.0,0.00029863,2]
[426760351,1782784249000,-500.0,0.00029863,2]
[426760378,1782784249000,-500.0,0.00029863,7]
[426760352,1782784249000,-500.0,0.00029863,2]
[426760365,1782784249000,-500.0,0.00029863,7]
[426760367,1782784249000,-500.0,0.00029863,7]
[426760366,1782784249000,-500.0,0.00029863,7]
[426760354,1782784249000,-500.0,0.00029863,7]
[426760377,1782784249000,-500.0,0.00029863,7]
[426760359,1782784249000,-500.0,0.00029863,7]
[426760360,1782784249000,-500.0,0.00029863,7]
[426760357,1782784249000,-500.0,0.00029863,7]
[426760356,1782784249000,-500.0,0.00029863,7]
[426760361,1782784249000,-500.0,0.00029863,7]
[426760364,1782784249000,-500.0,0.00029863,7]
[426760413,1782784250000,-145543.53485665,0.0003,2]
[426760410,1782784250000,-1284.0,0.0003,5]
[426760412,1782784250000,-1234.0,0.0003,2]
[426760411,1782784250000,-525661.18965729,0.0003,2]
[426760408,1782784250000,-2000.0,0.00029994,2]
[426760407,1782784250000,-2000.0,0.00029994,2]
[426760406,1782784250000,-2000.0,0.00029994,2]
[426760403,1782784250000,-2000.0,0.00029994,2]
[426760404,1782784250000,-2000.0,0.00029994,2]
[426760414,1782784250000,-48680.5635481,0.0003,2]
[426760409,1782784250000,-642.567,0.0003,5]
[426760417,1782784250000,-16269.72023898,0.0003,2]
[426760405,1782784250000,-2000.0,0.00029994,2]
[426760416,1782784250000,-20627.28630541,0.0003,2]
[426760428,1782784250000,-2223.8260537,0.0003,2]
[426760426,1782784250000,-225.224767,0.00029863,7]
[426760427,1782784250000,-5688.86051381,0.0003,2]
[426760425,1782784250000,-151.0,0.00029863,7]
[426760420,1782784250000,-2372.56105648,0.0003,2]
[426760415,1782784250000,-8612.881765,0.0003,2]
[426760424,1782784250000,-151.0,0.00029863,7]
[426760418,1782784250000,-497.92914224,0.0003,2]
[426760419,1782784250000,-6150.20260789,0.0003,2]
[426760421,1782784250000,-2433.1418704,0.0003,2]
[426760423,1782784250000,-792.96020671,0.0003,2]
[426760422,1782784250000,-348.56123576,0.0003,2]
[426760429,1782784283000,10000.0,0.00030137,30]
[426760433,1782784471000,-310.94050215,0.00014033,7]
[426760442,1782784629000,1556.59502469,0.000125,2]
[426760443,1782784629000,4468.68652354,0.000125,2]
[426760446,1782784652000,3252.68280593,0.00029275,30]
[426760447,1782784674000,167.34769028,0.00029275,30]
[426760675,1782785432000,-324.49159448,0.00012999,2]
[426760681,1782785432000,-2171.4290785,0.00013,2]
[426760677,1782785432000,-108.96651559,0.00012999,2]
[426760679,1782785432000,-115.20170985,0.00012999,2]
[426760728,1782785446000,-2702.95553448,0.00013,2]
[426760834,1782785682000,160.0,0.00029278,30]
[426760835,1782785707000,400.8081359,0.00029278,30]
[426760957,1782786216000,443.0,0.00030136,30]
[426761027,1782786319000,1651.54114761,0.00030136,120]
[426761028,1782786330000,160.0,0.00029271,30]
[426761029,1782786348000,480.0,0.00029271,30]
[426761115,1782786632000,-569.44062516,0.00013,2]
[426761164,1782786640000,-3286.71001782,0.00013,2]
[426761165,1782786640000,-1825.08070627,0.00013,2]
[426761206,1782786643000,-2296.06455479,0.00013,2]
[426761210,1782786654000,-7155.40979501,0.00013,2]
[426761232,1782787078000,-157.64096816,0.00012999,7]
[426761234,1782787121000,-189.60771248,0.00012999,2]
[426761236,1782787121000,-357.27456049,0.00012999,2]
[426761235,1782787121000,-324.49159448,0.00012999,2]
[426761237,1782787121000,-500.0,0.00012999,2]
[426761240,1782787121000,-323.94636439,0.00012999,2]
[426761239,1782787121000,-500.0,0.00012999,2]
[426761238,1782787121000,-500.0,0.00012999,2]
[426761242,1782787176000,275.94308787,0.0001,2]
[426761243,1782787263000,-998.943,0.00013,2]
[426761244,1782787330000,-151.0,0.0001261,2]
[426761245,1782787330000,-731.224,0.00013,2]
[426761310,1782787752000,-410.82893429,0.00013,2]
[426761334,1782787832000,-433.45811007,0.00013,2]
[426761335,1782787832000,-8504.98556716,0.00013,2]
[426761333,1782787832000,-1277.15549649,0.00013,2]
[426761336,1782787837000,488.86,0.00030136,120]
[426761398,1782787841000,-196.87139144,0.0002616,2]
[426761367,1782787841000,-235.466742,0.00019539,2]
[426761369,1782787841000,-532.4,0.00020999,2]
[426761373,1782787841000,-849.80680854,0.00021,2]
[426761372,1782787841000,-1299.68213668,0.00021,2]
[426761370,1782787841000,-4251.56094208,0.00021,2]
[426761371,1782787841000,-2723.41357853,0.00021,2]
[426761389,1782787841000,-532.4,0.00024999,2]
[426761388,1782787841000,-248.064,0.00024832,2]
[426761378,1782787841000,-1382.43418314,0.00022053,2]
[426761377,1782787841000,-235.466742,0.00022007,2]
[426761380,1782787841000,-235.466742,0.00022829,2]
[426761381,1782787841000,-3284.32186933,0.00023213,2]
[426761383,1782787841000,-178.124,0.00023988,5]
[426761385,1782787841000,-1852.73789819,0.0002465,2]
[426761387,1782787841000,-450.975,0.00024832,2]
[426761382,1782787841000,-235.466742,0.00023652,2]
[426761386,1782787841000,-1421.0,0.00024832,2]
[426761384,1782787841000,-532.4,0.00024001,2]
[426761390,1782787841000,-2712.04211367,0.00025,2]
[426761392,1782787841000,-4432.39620098,0.00025,5]
[426761368,1782787841000,-235.466742,0.00020361,2]
[426761379,1782787841000,-4975.10789304,0.000222,2]
[426761376,1782787841000,-10383.32160169,0.000215,2]
[426761364,1782787841000,-2833.92119864,0.00015,2]
[426761400,1782787841000,-482.7,0.00026434,3]
[426761348,1782787841000,-230.65301926,0.00013,2]
[426761347,1782787841000,-36020.66388651,0.00013,2]
[426761350,1782787841000,-500.0,0.00013698,2]
[426761349,1782787841000,-433.45811007,0.00013,2]
[426761351,1782787841000,-548.20286204,0.00013698,2]
[426761352,1782787841000,-500.0,0.00013698,2]
[426761363,1782787841000,-220.2,0.00015,7]
[426761353,1782787841000,-500.0,0.00013698,2]
[426761355,1782787841000,-532.4,0.00013698,2]
[426761354,1782787841000,-500.0,0.00013698,2]
[426761356,1782787841000,-532.4,0.00013698,2]
[426761358,1782787841000,-500.0,0.00013698,2]
[426761361,1782787841000,-500.0,0.00014999,2]
[426761359,1782787841000,-287.64295872,0.00013698,2]
[426761357,1782787841000,-532.4,0.00013698,2]
[426761360,1782787841000,-1733.31098509,0.00013698,2]
[426761362,1782787841000,-500.0,0.00015,2]
[426761365,1782787841000,-4581.45136004,0.00015,2]
[426761375,1782787841000,-504.83076829,0.00021499,2]
[426761366,1782787841000,-281.0259343,0.00018372,2]
[426761374,1782787841000,-235.466742,0.00021184,2]
[426761397,1782787841000,-19900.0,0.00026,2]
[426761409,1782787841000,-532.4,0.00026443,2]
[426761395,1782787841000,-300.0,0.00025999,2]
[426761446,1782787841000,-801.18709986,0.000282,2]
[426761454,1782787841000,-25250.16578975,0.0002876,2]
[426761464,1782787841000,-237.610436,0.000288,7]
[426761466,1782787841000,-880.091527,0.00028905,7]
[426761469,1782787841000,-880.091527,0.00028905,7]
[426761471,1782787841000,-880.091527,0.00028905,7]
[426761473,1782787841000,-880.091527,0.00028905,7]
[426761456,1782787841000,-1000.0,0.000288,2]
[426761462,1782787841000,-237.610436,0.000288,7]
[426761458,1782787841000,-237.610436,0.000288,7]
[426761460,1782787841000,-237.610436,0.000288,7]
[426761477,1782787841000,-155.793803,0.00028999,7]
[426761479,1782787841000,-532.4,0.00028999,7]
[426761481,1782787841000,-532.4,0.00028999,7]
[426761485,1782787841000,-532.4,0.00028999,7]
[426761483,1782787841000,-532.4,0.00028999,7]
[426761487,1782787841000,-532.4,0.00028999,7]
[426761493,1782787841000,-237.610436,0.00029,7]
[426761489,1782787841000,-900.5812283,0.00029,2]
[426761491,1782787841000,-98225.69526058,0.00029,2]
[426761394,1782787841000,-532.4,0.00025999,2]
[426761441,1782787841000,-281.52,0.00027884,2]
[426761433,1782787841000,-46478.89257191,0.000275,2]
[426761475,1782787841000,-160.0,0.00028905,4]
[426761452,1782787841000,-532.4,0.00028759,7]
[426761448,1782787841000,-532.4,0.00028499,7]
[426761393,1782787841000,-1000.0,0.000255,2]
[426761391,1782787841000,-10364.0,0.00025,2]
[426761396,1782787841000,-535.90442287,0.00026,2]
[426761403,1782787841000,-724.07,0.00026434,3]
[426761401,1782787841000,-241.35,0.00026434,3]
[426761405,1782787841000,-532.4,0.00026443,2]
[426761419,1782787841000,-651.09147481,0.00027075,2]
[426761417,1782787841000,-417.11565954,0.00027075,2]
[426761407,1782787841000,-532.4,0.00026443,2]
[426761411,1782787841000,-60245.80315745,0.00026444,2]
[426761415,1782787841000,-364.9762021,0.00027075,2]
[426761429,1782787841000,-532.4,0.00027499,7]
[426761413,1782787841000,-300.0,0.00026921,4]
[426761495,1782787841000,-237.610436,0.00029,7]
[426761426,1782787841000,-350.29849015,0.00027075,2]
[426761431,1782787841000,-532.4,0.00027499,7]
[426761435,1782787841000,-965.4,0.00027804,3]
[426761437,1782787841000,-482.7,0.00027804,3]
[426761450,1782787841000,-1095.770563,0.0002871,2]
[426761443,1782787841000,-160.0,0.00028016,3]
[426761439,1782787841000,-446.0,0.00027832,2]
[426761424,1782787841000,-306.81799688,0.00027075,2]
[426761575,1782787842000,-200.37364691,0.00029235,2]
[426761567,1782787842000,-28485.65445901,0.00029235,2]
[426761589,1782787842000,-151.0,0.00029235,2]
[426761595,1782787842000,-151.0,0.00029235,2]
[426761593,1782787842000,-151.0,0.00029235,2]
[426761573,1782787842000,-296.03994519,0.00029235,2]
[426761553,1782787842000,-153.03571772,0.00029235,2]
[426761557,1782787842000,-681.37368668,0.00029235,2]
[426761555,1782787842000,-263.24748269,0.00029235,2]
[426761571,1782787842000,-162.72840896,0.00029235,2]
[426761587,1782787842000,-151.0,0.00029235,2]
[426761559,1782787842000,-329.56530278,0.00029235,2]
[426761591,1782787842000,-210.2673369,0.00029235,2]
[426761614,1782787842000,-237.610436,0.000294,7]
[426761597,1782787842000,-1391.08,0.00029254,7]
[426761585,1782787842000,-151.0,0.00029235,2]
[426761581,1782787842000,-151.0,0.00029235,2]
[426761583,1782787842000,-151.0,0.00029235,2]
[426761579,1782787842000,-151.0,0.00029235,2]
[426761599,1782787842000,-532.4,0.0002927,7]
[426761603,1782787842000,-532.4,0.0002927,7]
[426761607,1782787842000,-532.63311106,0.0002927,7]
[426761605,1782787842000,-532.4,0.0002927,7]
[426761620,1782787842000,-880.091527,0.000294,7]
[426761610,1782787842000,-3000.0,0.000294,2]
[426761612,1782787842000,-237.610436,0.000294,7]
[426761569,1782787842000,-602.67655793,0.00029235,2]
[426761577,1782787842000,-904.06,0.00029235,2]
[426761563,1782787842000,-160.0,0.00029235,2]
[426761513,1782787842000,-332.94986521,0.00029235,2]
[426761565,1782787842000,-1300.0,0.00029235,2]
[426761497,1782787842000,-237.610436,0.00029,7]
[426761499,1782787842000,-237.610436,0.00029,7]
[426761501,1782787842000,-880.091527,0.00029,7]
[426761503,1782787842000,-880.091527,0.00029,7]
[426761511,1782787842000,-824.80344644,0.00029235,2]
[426761616,1782787842000,-237.610436,0.000294,7]
[426761507,1782787842000,-880.091527,0.00029,7]
[426761515,1782787842000,-297.1498076,0.00029235,2]
[426761517,1782787842000,-648.73805644,0.00029235,2]
[426761505,1782787842000,-880.091527,0.00029,7]
[426761509,1782787842000,-300.0,0.00029235,2]
[426761518,1782787842000,-1386.41034224,0.00029235,2]
[426761521,1782787842000,-159.41308944,0.00029235,2]
[426761551,1782787842000,-204.96019024,0.00029235,2]
[426761523,1782787842000,-717.15670403,0.00029235,2]
[426761527,1782787842000,-752.6776154,0.00029235,2]
[426761531,1782787842000,-591.85727935,0.00029235,2]
[426761529,1782787842000,-160.39144942,0.00029235,2]
[426761535,1782787842000,-21190.70696385,0.00029235,2]
[426761537,1782787842000,-476.32045132,0.00029235,2]
[426761539,1782787842000,-1622.0302201,0.00029235,2]
[426761533,1782787842000,-516.77101127,0.00029235,2]
[426761543,1782787842000,-1422.24809006,0.00029235,2]
[426761545,1782787842000,-1216.78781027,0.00029235,2]
[426761541,1782787842000,-192.55875634,0.00029235,2]
[426761549,1782787842000,-1687.21190273,0.00029235,2]
[426761547,1782787842000,-662.9928433,0.00029235,2]
[426761561,1782787842000,-1062.28273902,0.00029235,2]
[426761525,1782787842000,-715.22551076,0.00029235,2]
[426761622,1782787842000,-880.091527,0.000294,7]
[426761602,1782787842000,-532.4,0.0002927,7]
[426761624,1782787842000,-880.091527,0.000294,7]
[426761688,1782787842000,-500.0,0.00029863,7]
[426761690,1782787842000,-501.53559383,0.00029863,7]
[426761694,1782787842000,-500.0,0.00029863,7]
[426761698,1782787842000,-500.0,0.00029863,7]
[426761699,1782787842000,-342.6162636,0.00029863,7]
[426761703,1782787842000,-500.0,0.00029863,7]
[426761695,1782787842000,-500.0,0.00029863,7]
[426761701,1782787842000,-500.0,0.00029863,7]
[426761707,1782787842000,-500.0,0.00029863,7]
[426761720,1782787842000,-500.0,0.00029863,7]
[426761718,1782787842000,-500.0,0.00029863,7]
[426761711,1782787842000,-501.00006212,0.00029863,7]
[426761723,1782787842000,-500.0,0.00029863,7]
[426761709,1782787842000,-500.0,0.00029863,7]
[426761713,1782787842000,-500.0,0.00029863,7]
[426761726,1782787842000,-500.0,0.00029863,7]
[426761717,1782787842000,-500.0,0.00029863,7]
[426761715,1782787842000,-500.0,0.00029863,7]
[426761729,1782787842000,-500.0,0.00029863,7]
[426761732,1782787842000,-500.0,0.00029863,7]
[426761735,1782787842000,-500.0,0.00029863,7]
[426761738,1782787842000,-500.0,0.00029863,7]
[426761743,1782787842000,-500.0,0.00029863,7]
[426761746,1782787842000,-500.0,0.00029863,7]
[426761741,1782787842000,-500.0,0.00029863,7]
[426761744,1782787842000,-500.0,0.00029863,7]
[426761751,1782787842000,-500.0,0.00029863,7]
[426761748,1782787842000,-500.0,0.00029863,7]
[426761618,1782787842000,-237.610436,0.000294,7]
[426761692,1782787842000,-500.0,0.00029863,7]
[426761684,1782787842000,-501.38246501,0.00029863,7]
[426761750,1782787842000,-453.46613877,0.00029863,7]
[426761680,1782787842000,-1027.43,0.000298,20]